Organisation Name,Organisation Code,Directorate/Service,Service Category Label,Service Code,Supplier Name,Supplier Reference,Payment Date,Transaction Number,Net Payment,Purpose of Spend
North West Leicestershire District Council,31UH,Street Management,Environment - Street Scene,ESS,Metric Group Ltd (Sales),A028996,15/11/2017,1349968,46020,Contract Payments (Other) Ext
North West Leicestershire District Council,31UH,Street Management,Environment - Street Scene,ESS,Metric Group Ltd (Sales),A028996,15/11/2017,1350850,10985,Contract Payments (Other) Ext
North West Leicestershire District Council,31UH,Street Management,Environment Transport,ENOT,Platts Harris Ltd,A038987,29/11/2017,1351075,435.13,Operational Equipment- Parts
North West Leicestershire District Council,31UH,Street Management,Environment - Street Scene,ESS,Metric Group Ltd (Sales),A028996,15/11/2017,1351701,561.38,Contract Payments (Other) Ext
North West Leicestershire District Council,31UH,Leisure Centres,Hood Park Leisure Centre,HPLC,Audience Systems Limited,A033909,01/11/2017,1352155,660.37,Furniture
North West Leicestershire District Council,31UH,Street Management,Environment - Street Scene,ESS,Metric Group Ltd (Sales),A028996,15/11/2017,1352278,860,Contract Payments (Other) Ext
North West Leicestershire District Council,31UH,Housing,HRA Performance & Business Support,HRAPBS,Michael Page International Recruitment Ltd,A041893,01/11/2017,1352451,2017.75,Agency Staff
North West Leicestershire District Council,31UH,Street Management,Environment Waste Management,ENOWM,J F Lloyd & Sons,A000991,01/11/2017,1352551,260,Hire Of Operational Equipment
North West Leicestershire District Council,31UH,Housing,HRA Housing Management,HRAHM,ESPO,A000958,15/11/2017,1352817,535,Stationery
North West Leicestershire District Council,31UH,Housing,HRA Older Persons Service,HRAOPS,Tunstall Healthcare (UK) Limited,A001701,08/11/2017,1352855,1124.1,Alarm System Telephones
North West Leicestershire District Council,31UH,Legal & Democratic,Civic Expenses,LDCE,Technical Surfaces Ltd,A000516,01/11/2017,1352872,2250,Routine Ground Maintenance
North West Leicestershire District Council,31UH,Housing,HRA Older Persons Service,HRAOPS,Tunstall Healthcare (UK) Limited,A001701,08/11/2017,1352884,2560,Alarm System Telephones
North West Leicestershire District Council,31UH,Housing,HRA Older Persons Service,HRAOPS,Tunstall Healthcare (UK) Limited,A001701,08/11/2017,1352894,450,Alarm System Telephones
North West Leicestershire District Council,31UH,Environmental Health,Environmental Health & Licensing,EEHL,Mega Arumugam,A043638,01/11/2017,1352971,350,Training Courses (Organised)
North West Leicestershire District Council,31UH,Housing,HRA Performance & Business Support,HRAPBS,Nottingham City Council,A041558,22/11/2017,1353023,575,Training Courses (Organised)
North West Leicestershire District Council,31UH,Information Technology,ICT Services,ICT,ANS Group Plc,A034753,29/11/2017,1353057,2025,Contract Payments (Other) Ext
North West Leicestershire District Council,31UH,Leisure & Culture,Sport & Physical Activity,SPA,Deana Wildgoose - The Hero Project,A043851,01/11/2017,1353098,350,Event Expenditure
North West Leicestershire District Council,31UH,Leisure & Culture,Sport & Physical Activity,SPA,Midland Entertainment,A042677,01/11/2017,1353099,650,LSA - SPORTS AWARDS
North West Leicestershire District Council,31UH,Leisure Centres,Hermitage Leisure Centre,HLC,Gladstone MRM Ltd,A024642,01/11/2017,1353100,1590,Computing
North West Leicestershire District Council,31UH,Leisure Centres,Hermitage Leisure Centre,HLC,Eaton Electrical Ltd,A044048,08/11/2017,1353106,474,Maintenance- Electrical
North West Leicestershire District Council,31UH,Street Management,Environment - Street Scene,ESS,Elite Industrial Doors Ltd,A042135,22/11/2017,1353109,275,Operational Equipment
North West Leicestershire District Council,31UH,Housing,HRA Performance & Business Support,HRAPBS,Marsh Limited,A042169,01/11/2017,1353111,11470.27,Insurances
North West Leicestershire District Council,31UH,Leisure Centres,Hermitage Leisure Centre,HLC,Admiral Cleaning Supplies Ltd,A040930,01/11/2017,1353122,643.28,Consumable Cleaning Materials  
North West Leicestershire District Council,31UH,Legal & Democratic,Business Development Team,BDT,Touchstone Associates Limited,A044281,08/11/2017,1353322,1083.36,Training Courses (Organised)
North West Leicestershire District Council,31UH,Legal & Democratic,Business Development Team,BDT,Freevacy Ltd,A043621,01/11/2017,1353323,676,Training Courses (Organised)
North West Leicestershire District Council,31UH,Housing Repairs,HRA Housing Repairs & Maintenance,HRAHRM,Gulliver's Truck Hire Ltd. (Bristol),A033366,15/11/2017,1353327,453,Hire Of Transport
North West Leicestershire District Council,31UH,Leisure Centres,Hermitage Leisure Centre,HLC,Craftsman Quality Lockers Ltd,A039532,08/11/2017,1353338,335,Secure Storage Tokens
North West Leicestershire District Council,31UH,Information Technology,ICT Services,ICT,Phoenix Software Limited,A001298,01/11/2017,1353341,9279.7,Software Licences
North West Leicestershire District Council,31UH,Information Technology,ICT Services,ICT,Cuttlefish Multimedia Ltd,A032102,01/11/2017,1353342,1718.33,Website Maintenance
North West Leicestershire District Council,31UH,Leisure Centres,Hermitage Leisure Centre,HLC,Revolution,A001386,08/11/2017,1353346,251.46,Protective Clothing
North West Leicestershire District Council,31UH,Property Services,Property Commercial Lettings,PROPCL,Coalville Cleaning Services,A003037,01/11/2017,1353347,289.95,Contract Cleaning
North West Leicestershire District Council,31UH,Property Services,Property Commercial Lettings,PROPCL,Coalville Cleaning Services,A003037,01/11/2017,1353348,558.06,Contract Cleaning
North West Leicestershire District Council,31UH,Finance,Financial Planning,FINPLA,Kings Armoured Security Services Ltd,A004468,01/11/2017,1353358,1225.57,Cash Collection Service
North West Leicestershire District Council,31UH,Street Management,Environment Transport,ENOT,Selby's Garage (Woodhouse) Ltd,A044011,01/11/2017,1353363,509.49,Hire Of Operational Equipment
North West Leicestershire District Council,31UH,Finance,Financial Planning,FINPLA,The Knowledge Academy Ltd,A042117,01/11/2017,1353367,639,Training Courses (Organised)
North West Leicestershire District Council,31UH,Chief Exec,Chief Executive,CHEX,Infrastructure & Environment UK Ltd,A041786,01/11/2017,1353376,11554,Legal & Professional Services
North West Leicestershire District Council,31UH,Chief Exec,Chief Executive,CHEX,Rsk Environment,A044375,01/11/2017,1353377,7924.39,Consultants Fees
North West Leicestershire District Council,31UH,Planning & Development,Environment Community Planning,ECP,Proudcastle,A040322,08/11/2017,1353381,500,CCTV Maintenance
North West Leicestershire District Council,31UH,Chief Exec,Chief Executive,CHEX,Peter Brett Associates T/a Roger Tym & Partners,A028258,01/11/2017,1353382,27000,Consultants Fees
North West Leicestershire District Council,31UH,Street Management,Environment Transport,ENOT,Bandvulc Tyres Ltd,A033268,01/11/2017,1353392,3200,Transport Costs - Tyres
North West Leicestershire District Council,31UH,Street Management,Environment Transport,ENOT,Bandvulc Tyres Ltd,A033268,01/11/2017,1353393,3200,Transport Costs - Tyres
North West Leicestershire District Council,31UH,Street Management,Environment Transport,ENOT,Bandvulc Tyres Ltd,A033268,01/11/2017,1353394,-3200,Transport Costs - Tyres
North West Leicestershire District Council,31UH,Housing Repairs,HRA Housing Repairs & Maintenance,HRAHRM,OMS,A043771,01/11/2017,1353395,904,Training Courses (Organised)
North West Leicestershire District Council,31UH,Housing,HRA Housing Management,HRAHM,Oneserve Ltd,A041321,01/11/2017,1353396,1425,Computing
North West Leicestershire District Council,31UH,Information Technology,ICT Services,ICT,Insight Uk,A021505,29/11/2017,1353400,691.8,Admin Equipment
North West Leicestershire District Council,31UH,Leisure Centres,Hood Park Leisure Centre,HPLC,Craftsman Quality Lockers Ltd,A039532,01/11/2017,1353407,566.75,Operational Equipment
North West Leicestershire District Council,31UH,Housing,HRA Housing Management,HRAHM,Michael Dyson Associates Ltd,A028431,01/11/2017,1353408,672,Legal & Professional Services
North West Leicestershire District Council,31UH,Housing Repairs,HRA Housing Repairs & Maintenance,HRAHRM,Envico Ltd,A044381,01/11/2017,1353412,1538,Training Courses (Organised)
North West Leicestershire District Council,31UH,Housing Repairs,HRA Housing Repairs & Maintenance,HRAHRM,Heights Installations,A041264,01/11/2017,1353415,380,Satellite and Cable Services
North West Leicestershire District Council,31UH,Housing Repairs,HRA Housing Repairs & Maintenance,HRAHRM,H20 Utilities Ltd,A043865,01/11/2017,1353416,700,Associated Drainage Services
North West Leicestershire District Council,31UH,Housing Repairs,HRA Housing Repairs & Maintenance,HRAHRM,H20 Utilities Ltd,A043865,01/11/2017,1353422,595,Associated Drainage Services
North West Leicestershire District Council,31UH,Housing Repairs,HRA Housing Repairs & Maintenance,HRAHRM,H20 Utilities Ltd,A043865,01/11/2017,1353423,1400,Associated Drainage Services
North West Leicestershire District Council,31UH,Housing Repairs,HRA Housing Repairs & Maintenance,HRAHRM,Fire Proof Ltd,A039911,01/11/2017,1353450,618.92,Fire Protection Services
North West Leicestershire District Council,31UH,Housing Repairs,HRA Housing Repairs & Maintenance,HRAHRM,Sure Maintenance Ltd,A040460,01/11/2017,1353458,760,Plumbing & Heating
North West Leicestershire District Council,31UH,Housing Repairs,HRA Housing Repairs & Maintenance,HRAHRM,Laker BMS Ltd,A031787,01/11/2017,1353464,833,Housing Repairs
North West Leicestershire District Council,31UH,Housing Repairs,HRA Housing Repairs & Maintenance,HRAHRM,Sure Maintenance Ltd,A040460,01/11/2017,1353472,1155,Plumbing & Heating
North West Leicestershire District Council,31UH,Housing Repairs,HRA Housing Repairs & Maintenance,HRAHRM,Sure Maintenance Ltd,A040460,01/11/2017,1353473,1155,Plumbing & Heating
North West Leicestershire District Council,31UH,Housing Repairs,HRA Housing Repairs & Maintenance,HRAHRM,Kier Services Maintenance East Ltd,A039980,01/11/2017,1353474,9148.68,Decent Homes
North West Leicestershire District Council,31UH,Housing Repairs,HRA Housing Repairs & Maintenance,HRAHRM,Sure Maintenance Ltd,A040460,01/11/2017,1353493,320.05,Plumbing & Heating
North West Leicestershire District Council,31UH,Housing Repairs,HRA Housing Repairs & Maintenance,HRAHRM,Kier Services Maintenance East Ltd,A039980,01/11/2017,1353494,1511.04,Decent Homes
North West Leicestershire District Council,31UH,Housing Repairs,HRA Housing Repairs & Maintenance,HRAHRM,Kier Services Maintenance East Ltd,A039980,01/11/2017,1353495,2420.5,Decent Homes
North West Leicestershire District Council,31UH,Housing Repairs,HRA Housing Repairs & Maintenance,HRAHRM,Kier Services Maintenance East Ltd,A039980,01/11/2017,1353496,1528.77,Decent Homes
North West Leicestershire District Council,31UH,Housing Repairs,HRA Housing Repairs & Maintenance,HRAHRM,Kier Services Maintenance East Ltd,A039980,01/11/2017,1353497,3987.71,Decent Homes
North West Leicestershire District Council,31UH,Housing Repairs,HRA Housing Repairs & Maintenance,HRAHRM,Kier Services Maintenance East Ltd,A039980,01/11/2017,1353498,460.43,Decent Homes
North West Leicestershire District Council,31UH,Housing Repairs,HRA Housing Repairs & Maintenance,HRAHRM,Kier Services Maintenance East Ltd,A039980,01/11/2017,1353499,426.12,Decent Homes
North West Leicestershire District Council,31UH,Housing Repairs,HRA Housing Repairs & Maintenance,HRAHRM,Kier Services Maintenance East Ltd,A039980,01/11/2017,1353500,2549.55,Decent Homes
North West Leicestershire District Council,31UH,Housing Repairs,HRA Housing Repairs & Maintenance,HRAHRM,Lovell Partnerships Ltd,A039973,01/11/2017,1353501,8438.45,Decent Homes
North West Leicestershire District Council,31UH,Housing Repairs,HRA Housing Repairs & Maintenance,HRAHRM,Lovell Partnerships Ltd,A039973,01/11/2017,1353502,8757.49,Decent Homes
North West Leicestershire District Council,31UH,Housing Repairs,HRA Housing Repairs & Maintenance,HRAHRM,Lovell Partnerships Ltd,A039973,01/11/2017,1353503,3648.49,Decent Homes
North West Leicestershire District Council,31UH,Housing Repairs,HRA Housing Repairs & Maintenance,HRAHRM,Lovell Partnerships Ltd,A039973,01/11/2017,1353504,1227.85,Decent Homes
North West Leicestershire District Council,31UH,Housing Repairs,HRA Housing Repairs & Maintenance,HRAHRM,Lovell Partnerships Ltd,A039973,01/11/2017,1353505,7512.53,Decent Homes
North West Leicestershire District Council,31UH,Housing Repairs,HRA Housing Repairs & Maintenance,HRAHRM,Laker BMS Ltd,A031787,01/11/2017,1353506,4565,Housing Repairs
North West Leicestershire District Council,31UH,Housing Repairs,HRA Housing Repairs & Maintenance,HRAHRM,Laker BMS Ltd,A031787,01/11/2017,1353507,4120,Housing Repairs
North West Leicestershire District Council,31UH,Housing Repairs,HRA Housing Repairs & Maintenance,HRAHRM,Laker BMS Ltd,A031787,01/11/2017,1353508,4447.5,Housing Repairs
North West Leicestershire District Council,31UH,Housing Repairs,HRA Housing Repairs & Maintenance,HRAHRM,Laker BMS Ltd,A031787,01/11/2017,1353509,4430.35,Housing Repairs
North West Leicestershire District Council,31UH,Housing Repairs,HRA Housing Repairs & Maintenance,HRAHRM,Laker BMS Ltd,A031787,01/11/2017,1353510,329,Housing Repairs
North West Leicestershire District Council,31UH,Housing Repairs,HRA Housing Repairs & Maintenance,HRAHRM,Laker BMS Ltd,A031787,01/11/2017,1353511,727.25,Housing Repairs
North West Leicestershire District Council,31UH,Housing Repairs,HRA Housing Repairs & Maintenance,HRAHRM,Laker BMS Ltd,A031787,01/11/2017,1353512,2919.75,Housing Repairs
North West Leicestershire District Council,31UH,Housing Repairs,HRA Housing Repairs & Maintenance,HRAHRM,Laker BMS Ltd,A031787,01/11/2017,1353513,531,Housing Repairs
North West Leicestershire District Council,31UH,Housing Repairs,HRA Housing Repairs & Maintenance,HRAHRM,Laker BMS Ltd,A031787,01/11/2017,1353514,910.4,Housing Repairs
North West Leicestershire District Council,31UH,Housing Repairs,HRA Housing Repairs & Maintenance,HRAHRM,Woodland Property Services Ltd,A044070,01/11/2017,1353515,9108.4,Contract Payments (Dws) Ext
North West Leicestershire District Council,31UH,Information Technology,ICT Services,ICT,Canon UK Ltd,A040459,01/11/2017,1353517,268.45,Consumable Materials
North West Leicestershire District Council,31UH,Leisure Centres,Hood Park Leisure Centre,HPLC,Lifetime Health & Fitness,A037150,01/11/2017,1353522,250,Training Courses (Organised)
North West Leicestershire District Council,31UH,Leisure Centres,Hood Park Leisure Centre,HPLC,Dura-Sport (Leisure Care) Ltd,A041815,01/11/2017,1353524,280,General Repairs
North West Leicestershire District Council,31UH,Leisure Centres,Hood Park Leisure Centre,HPLC,Admiral Cleaning Supplies Ltd,A040930,01/11/2017,1353525,334.68,Consumable Cleaning Materials  
North West Leicestershire District Council,31UH,Leisure Centres,Hood Park Leisure Centre,HPLC,ESPO,A000958,01/11/2017,1353526,699,Operational Equipment
North West Leicestershire District Council,31UH,Property Services,Property Facilities Management,PROPFM,Energy Assets,A044396,01/11/2017,1353533,268.54,Contract Payments (Other) Ext
North West Leicestershire District Council,31UH,Leisure Centres,Hood Park Bar and Catering,HPBC,Catering Services (Supplies) Ltd,A000310,01/11/2017,1353535,304.96,Catering Provisions
North West Leicestershire District Council,31UH,Leisure Centres,Hood Park Leisure Centre,HPLC,J P Lennard Ltd,A000969,01/11/2017,1353537,296,First Aid Equipment
North West Leicestershire District Council,31UH,Leisure Centres,Hermitage Leisure Centre,HLC,Measham Leisure Centre,A027454,01/11/2017,1353546,3874.49,Measham LC Lifestyle DD
North West Leicestershire District Council,31UH,Street Management,Environment Transport,ENOT,JB Tool Hire Ltd,A011490,01/11/2017,1353551,250,External Materials
North West Leicestershire District Council,31UH,Finance,Exchequer Services,EXCH,Comensura Limited,A036958,01/11/2017,1353552,27652.63,Agency Staff
North West Leicestershire District Council,31UH,Legal & Democratic,Legal Services,LDLS,Kings Chambers,A043775,01/11/2017,1353553,1000,Insolvency Administration
North West Leicestershire District Council,31UH,Planning & Development,Environment Community Planning,ECP,GHM Planning Limited,A034296,01/11/2017,1353554,1700.35,Agency Staff
North West Leicestershire District Council,31UH,Leisure & Culture,Sport & Physical Activity,SPA,Redacted- Personal data,A044398,01/11/2017,1353555,500,LSA - SPORTS AWARDS
North West Leicestershire District Council,31UH,Leisure Centres,Hood Park Bar and Catering,HPBC,Snackline Direct Ltd,A042489,01/11/2017,1353557,959.93,Bar Provisions
North West Leicestershire District Council,31UH,Leisure Centres,Hood Park Leisure Centre,HPLC,Snackline Direct Ltd,A042489,01/11/2017,1353558,1339.02,Bar Provisions
North West Leicestershire District Council,31UH,Planning & Development,Environment Community Planning,ECP,The Drawing Room (Architects) Ltd,A043620,01/11/2017,1353560,7200,Legal & Professional Services
North West Leicestershire District Council,31UH,Planning & Development,Environment Community Planning,ECP,The Drawing Room (Architects) Ltd,A043620,01/11/2017,1353561,12000,Legal & Professional Services
North West Leicestershire District Council,31UH,Information Technology,ICT Services,ICT,Kingsfield Computer Products Ltd,A023356,01/11/2017,1353590,263.96,Admin Equipment
North West Leicestershire District Council,31UH,Corporate Director,Human Resources,HR,Electoral Reform Services Limited,A038581,01/11/2017,1353592,2983.19,Election Services
North West Leicestershire District Council,31UH,Housing,HRA Housing Management,HRAHM,Emperor Scaffolding Limited,A038405,01/11/2017,1353594,300,Hire Of Operational Equipment
North West Leicestershire District Council,31UH,Housing,HRA Housing Management,HRAHM,Emperor Scaffolding Limited,A038405,01/11/2017,1353596,350,Hire Of Operational Equipment
North West Leicestershire District Council,31UH,Housing,HRA Housing Management,HRAHM,Emperor Scaffolding Limited,A038405,01/11/2017,1353597,700,Hire Of Operational Equipment
North West Leicestershire District Council,31UH,Housing Repairs,HRA Housing Repairs & Maintenance,HRAHRM,G Purchase Construction Ltd,A032830,01/11/2017,1353600,70597.8,Housing repairs
North West Leicestershire District Council,31UH,Housing,HRA Performance & Business Support,HRAPBS,Hinckley & Bosworth Borough Council,A000770,15/11/2017,1353621,1330.26,Agency Staff
North West Leicestershire District Council,31UH,Communications,Corporate - Customer Services,CS,GovNet Communications,A032865,15/11/2017,1353623,395,Medical Fees
North West Leicestershire District Council,31UH,Housing Repairs,HRA Housing Repairs & Maintenance,HRAHRM,HQN Ltd,A007983,01/11/2017,1353625,250,Training Courses (Organised)
North West Leicestershire District Council,31UH,Housing Repairs,HRA Housing Repairs & Maintenance,HRAHRM,HQN Ltd,A007983,01/11/2017,1353626,250,Training Courses (Organised)
North West Leicestershire District Council,31UH,Street Management,Environment Parks,ENOP,Baginton Nurseries Ltd,A039715,01/11/2017,1353628,6174.27,Horticultural Supplies
North West Leicestershire District Council,31UH,Information Technology,ICT Services,ICT,Idox Software Ltd,A034157,01/11/2017,1353630,19000,Contract Payments (Other) Ext
North West Leicestershire District Council,31UH,Legal & Democratic,Electoral & Land Charges,LDELC,Royal Mail Group Plc,A001418,01/11/2017,1353633,1558.98,Postages
North West Leicestershire District Council,31UH,Housing Repairs,HRA Housing Repairs & Maintenance,HRAHRM,CLC Contractors Ltd,A044213,01/11/2017,1353634,9544.11,Contract Payments (Dws) Ext
North West Leicestershire District Council,31UH,Environmental Health,Environmental Health & Licensing,EEHL,Killgerm Chemicals Ltd,A000890,01/11/2017,1353678,419.5,Baits & Poisons
North West Leicestershire District Council,31UH,Property Services,Property Commercial Lettings,PROPCL,Coalville Cleaning Services,A003037,01/11/2017,1353681,254.45,Consumable Cleaning Materials  
North West Leicestershire District Council,31UH,Information Technology,ICT Services,ICT,Firmstep,A030931,08/11/2017,1353683,883.75,Contract Payments (Other) Ext
North West Leicestershire District Council,31UH,Street Management,Environment Transport,ENOT,K Irvine Plant UK Ltd,A041659,01/11/2017,1353695,340.9,Non Scheduled Maintenance - Parts
North West Leicestershire District Council,31UH,Street Management,Environment Transport,ENOT,Sherwood Truck and Van Limited,A035120,01/11/2017,1353696,309.88,Repairs - Parts
North West Leicestershire District Council,31UH,Housing,HRA Housing Management,HRAHM,Virgin Media Limited,A044411,01/11/2017,1353703,15497.48,Place Based Envirnmental Improvements
North West Leicestershire District Council,31UH,Housing,HRA Housing Management,HRAHM,Redacted- Personal data,A044373,01/11/2017,1353705,1000,Under Occupancy Incentives
North West Leicestershire District Council,31UH,Property Services,Property Facilities Management,PROPFM,ESPO,A000958,08/11/2017,1353720,328.86,Cleaning & Domestic Equipment
North West Leicestershire District Council,31UH,Planning & Development,Environment Community Planning,ECP,The Professional Promotion Company Ltd,A043727,08/11/2017,1353721,334,Promotional Equipment
North West Leicestershire District Council,31UH,Property Services,Property Facilities Management,PROPFM,Mather Jamie,A043015,08/11/2017,1353722,1500,Legal & Professional Services
North West Leicestershire District Council,31UH,Street Management,Environment Waste Management,ENOWM,Norwood Press,A042636,15/11/2017,1353725,1729,Publicity & Promotion
North West Leicestershire District Council,31UH,Leisure Centres,Hermitage Leisure Centre,HLC,Alexandra Plc,A000033,08/11/2017,1353729,289.8,Protective Clothing
North West Leicestershire District Council,31UH,Finance,Financial Planning,FINPLA,CIPFA,A027467,08/11/2017,1353736,295,Training Courses (Organised)
North West Leicestershire District Council,31UH,Legal & Democratic,Legal Services,LDLS,Bevan Brittan,A031366,08/11/2017,1353738,4771,Legal & Professional Services
North West Leicestershire District Council,31UH,Corporate Director,Human Resources,HR,Health Management Ltd,A038840,08/11/2017,1353739,1000,Occupational Health Services
North West Leicestershire District Council,31UH,Neighbourhoods & Communities,N & C Neighbourhoods,NACN,Bilingual Day Nursery,A044412,08/11/2017,1353743,25000,Grants
North West Leicestershire District Council,31UH,Leisure Centres,Hood Park Leisure Centre,HPLC,Eaton Electrical Ltd,A044048,08/11/2017,1353744,966.82,Maintenance- Electrical
North West Leicestershire District Council,31UH,Street Management,Environment Transport,ENOT,Berendsen Uk Ltd,A001600,08/11/2017,1353747,374.14,Protective Clothing
North West Leicestershire District Council,31UH,Property Services,Property Commercial Lettings,PROPCL,Purchase Power,A008204,08/11/2017,1353754,3033,Postages
North West Leicestershire District Council,31UH,Information Technology,ICT Services,ICT,Xpress Software Solutions,A041342,08/11/2017,1353755,750,Contract Payments (Other) Ext
North West Leicestershire District Council,31UH,Finance,Exchequer Services,EXCH,H M Land Registry,A000713,02/11/2017,1353757,654,Land registry Search Fees
North West Leicestershire District Council,31UH,Finance,Financial Planning,FINPLA,Leicestershire County Council,A000950,02/11/2017,1353763,3805048,Precept
North West Leicestershire District Council,31UH,Finance,Financial Planning,FINPLA,Leicestershire County Council,A000950,02/11/2017,1353764,1832634,Precept
North West Leicestershire District Council,31UH,Finance,Financial Planning,FINPLA,Department for Communities & Local Government,A028518,02/11/2017,1353765,2268114,Subsidy Receipts & Repayments
North West Leicestershire District Council,31UH,Finance,Financial Planning,FINPLA,The Office of the Police and Crime Commissioner for Leicestershire,A007096,02/11/2017,1353766,608107.75,Precept
North West Leicestershire District Council,31UH,Finance,Financial Planning,FINPLA,"Leicester, Leicestershire and Rutland Combined Fire Service",A028339,02/11/2017,1353767,204100,Precept
North West Leicestershire District Council,31UH,Finance,Financial Planning,FINPLA,Public Works Loan Board,A001340,02/11/2017,1353768,43125,Policy Lending
North West Leicestershire District Council,31UH,Finance,Financial Planning,FINPLA,Department for Communities & Local Government,A028518,02/11/2017,1353769,148381.31,Subsidy Receipts & Repayments
North West Leicestershire District Council,31UH,Housing Repairs,HRA Housing Repairs & Maintenance,HRAHRM,Orbis Property Protection Ltd,A000133,02/11/2017,1353770,4177,Void Property Clearance Services
North West Leicestershire District Council,31UH,Finance,Financial Planning,FINPLA,Hinckley & Bosworth Borough Council,A000770,08/11/2017,1353784,17190,Shared Revs & Bens Partnership costs
North West Leicestershire District Council,31UH,Finance,Financial Planning,FINPLA,Leicestershire County Council,A000950,08/11/2017,1353785,1049390,Business Rates Pool- Levy
North West Leicestershire District Council,31UH,Communications,Corporate - Customer Services,CS,Royal Mail Group Plc,A001418,08/11/2017,1353786,3670,Postages
North West Leicestershire District Council,31UH,Street Management,Environment - Street Scene,ESS,Chipside Limited,A035398,08/11/2017,1353791,1992.12,Operational Equipment
North West Leicestershire District Council,31UH,Leisure & Culture,Cultural Services Heritage,CULTHC,Moira Furnace Museum Trust Ltd,A001136,08/11/2017,1353796,9400,Grants
North West Leicestershire District Council,31UH,Street Management,Environment - Street Scene,ESS,SLH Planning Solutions Limited,A044102,08/11/2017,1353800,2619.6,Consultants Fees
North West Leicestershire District Council,31UH,Neighbourhoods & Communities,N & C Neighbourhoods,NACN,Above & Beyond CIC,A044414,08/11/2017,1353801,480,Grants
North West Leicestershire District Council,31UH,Housing Strategy,Community - Housing Strategy,HS,Primrose Hotels Ltd T/A Hermitage Park Hotel,A010779,08/11/2017,1353820,325,Homelessness Accomodation
North West Leicestershire District Council,31UH,Street Management,Environment Transport,ENOT,Terberg Matec UK Limited,A001647,15/11/2017,1353822,1526.18,Vehicle Parts & Repairs
North West Leicestershire District Council,31UH,Street Management,Environment Transport,ENOT,Terberg Matec UK Limited,A001647,08/11/2017,1353823,1392.41,Vehicle Parts & Repairs
North West Leicestershire District Council,31UH,Street Management,Environment Transport,ENOT,Westbury Industrial Supplies Limited,A009933,08/11/2017,1353824,539.65,Protective Clothing
North West Leicestershire District Council,31UH,Street Management,Environment Waste Management,ENOWM,Sita UK Ltd,A001108,08/11/2017,1353830,276.96,Tipping Charges
North West Leicestershire District Council,31UH,Information Technology,ICT Services,ICT,Cuttlefish Multimedia Ltd,A032102,08/11/2017,1353831,7000,Website Design
North West Leicestershire District Council,31UH,Information Technology,ICT Services,ICT,QA Ltd,A034064,08/11/2017,1353833,2173.5,Computing
North West Leicestershire District Council,31UH,Information Technology,ICT Services,ICT,QA Ltd,A034064,08/11/2017,1353834,390,Computing
North West Leicestershire District Council,31UH,Planning & Development,Environment - Development Control,EDC,Euro RSCG People T/A Havas People Ltd,A001395,08/11/2017,1353840,750.61,Advertising
North West Leicestershire District Council,31UH,Planning & Development,Environment - Development Control,EDC,Euro RSCG People T/A Havas People Ltd,A001395,08/11/2017,1353841,832.06,Advertising
North West Leicestershire District Council,31UH,Planning & Development,Environment - Development Control,EDC,Euro RSCG People T/A Havas People Ltd,A001395,08/11/2017,1353843,843.03,Advertising
North West Leicestershire District Council,31UH,Street Management,Environment Transport,ENOT,Mertrux Ltd,A035291,08/11/2017,1353844,258.06,Non Scheduled Maintenance - Parts
North West Leicestershire District Council,31UH,Planning & Development,Environment - Development Control,EDC,Euro RSCG People T/A Havas People Ltd,A001395,08/11/2017,1353845,308.92,Advertising
North West Leicestershire District Council,31UH,Housing Repairs,HRA Housing Repairs & Maintenance,HRAHRM,Kaefer Ltd,A044187,08/11/2017,1353846,2520.21,Contract Payments (Dws) Ext
North West Leicestershire District Council,31UH,Property Services,Property Facilities Management,PROPFM,Valuation Office Agency,A034291,15/11/2017,1353849,815.25,Legal & Professional Services
North West Leicestershire District Council,31UH,Finance,Financial Planning,FINPLA,Leicestershire County Council,A000950,08/11/2017,1353850,4014.78,Parking Income
North West Leicestershire District Council,31UH,Street Management,Environment Waste Management,ENOWM,Leicestershire County Council,A000950,08/11/2017,1353854,62807.15,Trade Refuse Disposal Costs
North West Leicestershire District Council,31UH,Street Management,Environment Parks,ENOP,Regarde Security Ltd,A013049,08/11/2017,1353855,889.7,Security Services
North West Leicestershire District Council,31UH,Street Management,Environment Transport,ENOT,Certas Energy Uk Ltd,A043448,08/11/2017,1353858,17261.16,Fuel
North West Leicestershire District Council,31UH,Housing,HRA Housing Management,HRAHM,Linford & Verdon Tenants and Residents Association,A011717,08/11/2017,1353859,1000,Grants
North West Leicestershire District Council,31UH,Street Management,Environment Transport,ENOT,Certas Energy Uk Ltd,A043448,08/11/2017,1353860,497.7,Fuel
North West Leicestershire District Council,31UH,Property Services,Property Facilities Management,PROPFM,Regarde Security Ltd,A013049,08/11/2017,1353862,254.2,Security Services
North West Leicestershire District Council,31UH,Property Services,Property Facilities Management,PROPFM,Regarde Security Ltd,A013049,08/11/2017,1353869,508.4,Security Services
North West Leicestershire District Council,31UH,Leisure Centres,Hermitage Bar & Catering,HLBC,Snackline Direct Ltd,A042489,08/11/2017,1353870,584.73,Catering Provisions
North West Leicestershire District Council,31UH,Environmental Health,Environmental Services,EES,Royal Mail Group Plc,A001418,08/11/2017,1353872,354.12,Postages
North West Leicestershire District Council,31UH,Street Management,Environment Parks,ENOP,Water Plus Limited,A044043,08/11/2017,1353879,301.49,Sewerage & Environmental
North West Leicestershire District Council,31UH,Street Management,Environment Waste Management,ENOWM,Straight Plc,A024906,08/11/2017,1353883,8700,General Materials
North West Leicestershire District Council,31UH,Information Technology,ICT Services,ICT,Premier Paper Group,A042438,08/11/2017,1353886,427.31,Consumable Materials
North West Leicestershire District Council,31UH,Legal & Democratic,Legal Services,LDLS,Marrons Shakespeares,A041538,08/11/2017,1353895,1864,External Legal Fees & Advice
North West Leicestershire District Council,31UH,Finance,Exchequer Services,EXCH,Comensura Limited,A036958,08/11/2017,1353897,34282.09,Agency Staff
North West Leicestershire District Council,31UH,Housing Repairs,HRA Housing Repairs & Maintenance,HRAHRM,Ksa Consulting Engineers Ltd,A008757,08/11/2017,1353899,450,Legal & Professional Services
North West Leicestershire District Council,31UH,Housing Repairs,HRA Housing Repairs & Maintenance,HRAHRM,Emperor Scaffolding Limited,A038405,08/11/2017,1353901,550,Hire Of Operational Equipment
North West Leicestershire District Council,31UH,Housing Repairs,HRA Housing Repairs & Maintenance,HRAHRM,Emperor Scaffolding Limited,A038405,08/11/2017,1353902,550,Hire Of Operational Equipment
North West Leicestershire District Council,31UH,Housing Repairs,HRA Housing Repairs & Maintenance,HRAHRM,Emperor Scaffolding Limited,A038405,08/11/2017,1353906,700,Hire Of Operational Equipment
North West Leicestershire District Council,31UH,Housing Repairs,HRA Housing Repairs & Maintenance,HRAHRM,Ward Recycling,A035471,08/11/2017,1353909,1512.55,Tipping Charges
North West Leicestershire District Council,31UH,Housing Repairs,HRA Housing Repairs & Maintenance,HRAHRM,Orbis Property Protection Ltd,A028149,08/11/2017,1353913,251,Void Property Clearance Services
North West Leicestershire District Council,31UH,Housing Repairs,HRA Housing Repairs & Maintenance,HRAHRM,Orbis Property Protection Ltd,A028149,08/11/2017,1353915,285,Void Property Clearance Services
North West Leicestershire District Council,31UH,Housing Repairs,HRA Housing Repairs & Maintenance,HRAHRM,Orbis Property Protection Ltd,A028149,08/11/2017,1353920,359.5,Void Property Clearance Services
North West Leicestershire District Council,31UH,Housing Repairs,HRA Housing Repairs & Maintenance,HRAHRM,Orbis Property Protection Ltd,A028149,08/11/2017,1353921,640,Void Property Clearance Services
North West Leicestershire District Council,31UH,Housing Repairs,HRA Housing Repairs & Maintenance,HRAHRM,Orbis Property Protection Ltd,A028149,08/11/2017,1353922,370,Void Property Clearance Services
North West Leicestershire District Council,31UH,Housing Repairs,HRA Housing Repairs & Maintenance,HRAHRM,Orbis Property Protection Ltd,A028149,08/11/2017,1353927,575.5,Void Property Clearance Services
North West Leicestershire District Council,31UH,Housing Repairs,HRA Housing Repairs & Maintenance,HRAHRM,Laker BMS Ltd,A031787,08/11/2017,1353934,398.25,Housing Repairs
North West Leicestershire District Council,31UH,Housing Repairs,HRA Housing Repairs & Maintenance,HRAHRM,Laker BMS Ltd,A031787,08/11/2017,1353935,289,Housing Repairs
North West Leicestershire District Council,31UH,Housing Repairs,HRA Housing Repairs & Maintenance,HRAHRM,Laker BMS Ltd,A031787,08/11/2017,1353936,504.45,Housing Repairs
North West Leicestershire District Council,31UH,Housing Repairs,HRA Housing Repairs & Maintenance,HRAHRM,Laker BMS Ltd,A031787,08/11/2017,1353937,3074.5,Housing Repairs
North West Leicestershire District Council,31UH,Housing Repairs,HRA Housing Repairs & Maintenance,HRAHRM,H20 Utilities Ltd,A043865,08/11/2017,1353942,1475,Associated Drainage Services
North West Leicestershire District Council,31UH,Housing Repairs,HRA Housing Repairs & Maintenance,HRAHRM,H20 Utilities Ltd,A043865,08/11/2017,1353943,495,Associated Drainage Services
North West Leicestershire District Council,31UH,Housing Repairs,HRA Housing Repairs & Maintenance,HRAHRM,Laker BMS Ltd,A031787,08/11/2017,1353944,1369.64,Housing Repairs
North West Leicestershire District Council,31UH,Housing Repairs,HRA Housing Repairs & Maintenance,HRAHRM,Laker BMS Ltd,A031787,08/11/2017,1353945,3265.37,Housing Repairs
North West Leicestershire District Council,31UH,Housing Repairs,HRA Housing Repairs & Maintenance,HRAHRM,Laker BMS Ltd,A031787,08/11/2017,1353946,4199.65,Housing Repairs
North West Leicestershire District Council,31UH,Housing,HRA Housing Management,HRAHM,ECO Skip Hire Ltd,A041559,08/11/2017,1353948,290,General Repairs
North West Leicestershire District Council,31UH,Information Technology,ICT Services,ICT,Dell Computer Corporation Ltd,A000470,15/11/2017,1353950,834.92,Contract Payments (Other) Ext
North West Leicestershire District Council,31UH,Property Services,Property Facilities Management,PROPFM,Admiral Cleaning Supplies Ltd,A040930,08/11/2017,1353953,456.54,Cleaning & Domestic Equipment
North West Leicestershire District Council,31UH,Information Technology,ICT Services,ICT,QA Ltd,A034064,08/11/2017,1353999,3246.12,Computing
North West Leicestershire District Council,31UH,Street Management,Environment Transport,ENOT,Terberg Matec UK Limited,A001647,15/11/2017,1354004,555.32,Vehicle Parts & Repairs
North West Leicestershire District Council,31UH,Leisure & Culture,Leisure & Cult Mangt,LCM,"Oakthorpe, Donisthorpe and Acresford Parish Council",A001234,08/11/2017,1354014,10000,Grants
North West Leicestershire District Council,31UH,Information Technology,ICT Services,ICT,Orange Plc,A018592,08/11/2017,1354021,3418.17,Mobile Telephones
North West Leicestershire District Council,31UH,Street Management,Environment Transport,ENOT,Ford & Slater Group Ltd,A000625,08/11/2017,1354034,339.6,Non Scheduled Maintenance - Parts
North West Leicestershire District Council,31UH,Housing,HRA Housing Management,HRAHM,Sure Maintenance Ltd,A040460,08/11/2017,1354036,750,Plumbing & Heating
North West Leicestershire District Council,31UH,Housing Repairs,HRA Housing Repairs & Maintenance,HRAHRM,Kier Services Maintenance East Ltd,A039980,08/11/2017,1354037,15945.34,Decent Homes
North West Leicestershire District Council,31UH,Planning & Development,Environment - Town Centre/CCTV,ECCTV,The Tackle Cabin,A044423,08/11/2017,1354044,500,Grants
North West Leicestershire District Council,31UH,Corporate Director,Human Resources,HR,Arnold Clark Vehicle Management,A035549,08/11/2017,1354045,263.84,Vehicle Leasing
North West Leicestershire District Council,31UH,Street Management,Environment General Technician,ENOGT,Leicestershire County Council,A028430,08/11/2017,1354047,2075.17,Service Contracts
North West Leicestershire District Council,31UH,Housing,HRA Performance & Business Support,HRAPBS,Michael Page International Recruitment Ltd,A041893,08/11/2017,1354050,2979.2,Agency Staff
North West Leicestershire District Council,31UH,Housing,HRA Performance & Business Support,HRAPBS,Michael Page International Recruitment Ltd,A041893,08/11/2017,1354051,4694.2,Agency Staff
North West Leicestershire District Council,31UH,Housing Repairs,HRA Housing Repairs & Maintenance,HRAHRM,Leicestershire County Council,A000950,08/11/2017,1354052,1738.63,Service Contracts
North West Leicestershire District Council,31UH,Chief Exec,Chief Executive,CHEX,CBRE Ltd,A041437,08/11/2017,1354060,2000,Legal & Professional Services
North West Leicestershire District Council,31UH,Chief Exec,Chief Executive,CHEX,CBRE Ltd,A041437,08/11/2017,1354061,5000,Legal & Professional Services
North West Leicestershire District Council,31UH,Chief Exec,Chief Executive,CHEX,CBRE Ltd,A041437,08/11/2017,1354062,3750,Legal & Professional Services
North West Leicestershire District Council,31UH,Information Technology,ICT Services,ICT,Virgin Media Business,A008908,08/11/2017,1354064,3311.25,Admin Equipment - Maintenance
North West Leicestershire District Council,31UH,Planning & Development,Environment - Development Control,EDC,Euro RSCG People T/A Havas People Ltd,A001395,08/11/2017,1354065,818.14,Advertising
North West Leicestershire District Council,31UH,Leisure Centres,Hermitage Leisure Centre,HLC,Admiral Cleaning Supplies Ltd,A040930,15/11/2017,1354071,680.9,Water Treatment
North West Leicestershire District Council,31UH,Housing,HRA Performance & Business Support,HRAPBS,Northern Housing Consortium Ltd,A028253,15/11/2017,1354080,2981.88,Alarm Equipment Repairs
North West Leicestershire District Council,31UH,Street Management,Environment Transport,ENOT,Selby's Garage (Woodhouse) Ltd,A044011,15/11/2017,1354081,318.92,Hire Of Operational Equipment
North West Leicestershire District Council,31UH,Housing Strategy,Community - Housing Strategy,HS,Home Connections Lettings Ltd,A044386,15/11/2017,1354085,10250,Software   
North West Leicestershire District Council,31UH,Planning & Development,Environment Community Planning,ECP,JNE Marketing Limited,A033056,15/11/2017,1354089,405,Security Equipment
North West Leicestershire District Council,31UH,Environmental Health,Environmental Health & Licensing,EEHL,NewAuto Ltd,A034761,15/11/2017,1354091,598.9,Hackney Carriage - Plates & Badges
North West Leicestershire District Council,31UH,Street Management,Environment - Street Scene,ESS,Metric Group Ltd (Sales),A028996,15/11/2017,1354092,252,Subscriptions
North West Leicestershire District Council,31UH,Street Management,Environment General Technician,ENOGT,Cuckoo Gap Limited,A000438,15/11/2017,1354093,291.3,Routine Ground Maintenance
North West Leicestershire District Council,31UH,Street Management,Environment General Technician,ENOGT,Cuckoo Gap Limited,A000438,15/11/2017,1354097,2289.95,Routine Ground Maintenance
North West Leicestershire District Council,31UH,Street Management,Environment General Technician,ENOGT,Cuckoo Gap Limited,A000438,15/11/2017,1354098,250.2,Non Insurance Damage
North West Leicestershire District Council,31UH,Street Management,Environment General Technician,ENOGT,Cuckoo Gap Limited,A000438,15/11/2017,1354099,506.29,Routine Ground Maintenance
North West Leicestershire District Council,31UH,Street Management,Environment General Technician,ENOGT,Cuckoo Gap Limited,A000438,15/11/2017,1354103,292.81,Routine Ground Maintenance
North West Leicestershire District Council,31UH,Information Technology,ICT Services,ICT,Phoenix Software Limited,A001298,15/11/2017,1354112,3324.48,Software Licences
North West Leicestershire District Council,31UH,Environmental Health,Environmental Health & Licensing,EEHL,Eville And Jones Limited,A033670,15/11/2017,1354116,805.23,Vet Inspection
North West Leicestershire District Council,31UH,Finance,Housing Benefits,BENS,Capita Business Services Ltd,A002968,15/11/2017,1354117,1642.5,Revs & Bens expenditure funded by grants
North West Leicestershire District Council,31UH,Planning & Development,Environment Planning Policy,EPP,Haymarket Media Group,A035826,15/11/2017,1354118,1340,Training Courses (Organised)
North West Leicestershire District Council,31UH,Street Management,Environment Transport,ENOT,Malvern Tyres,A035175,15/11/2017,1354129,265.38,Transport Costs - Tyres
North West Leicestershire District Council,31UH,Street Management,Environment Transport,ENOT,Taylor Engineering & Fabrications Ltd,A036178,15/11/2017,1354135,555.25,Non Scheduled Maintenance - Parts
North West Leicestershire District Council,31UH,Street Management,Environment Transport,ENOT,Taylor Engineering & Fabrications Ltd,A036178,15/11/2017,1354136,312.9,Non Scheduled Maintenance - Parts
North West Leicestershire District Council,31UH,Corporate Director,Human Resources,HR,Inchcape Fleet Solutions,A039405,15/11/2017,1354139,319.2,Vehicle Leasing
North West Leicestershire District Council,31UH,Housing,HRA Performance & Business Support,HRAPBS,Michael Page International Recruitment Ltd,A041893,15/11/2017,1354143,10088.75,Agency Staff
North West Leicestershire District Council,31UH,Corporate Director,Human Resources,HR,Thomas International Uk Ltd,A001656,15/11/2017,1354144,250,Interim Support
North West Leicestershire District Council,31UH,Housing Repairs,HRA Housing Repairs & Maintenance,HRAHRM,DMW Environmental Safety Ltd,A044203,15/11/2017,1354146,483.16,Legal & Professional Services
North West Leicestershire District Council,31UH,Finance,Exchequer Services,EXCH,Comensura Limited,A036958,15/11/2017,1354147,29692.2,Agency Staff
North West Leicestershire District Council,31UH,Corporate Director,Human Resources,HR,Wider Plan Ltd,A043948,15/11/2017,1354148,4153.8,Staff Benefit Scheme
North West Leicestershire District Council,31UH,Housing Repairs,HRA Housing Repairs & Maintenance,HRAHRM,Sure Maintenance Ltd,A040460,15/11/2017,1354149,750,Plumbing & Heating
North West Leicestershire District Council,31UH,Leisure Centres,Hermitage Bar & Catering,HLBC,Snackline Direct Ltd,A042489,15/11/2017,1354151,766.65,Vending Machine Provisions
North West Leicestershire District Council,31UH,Street Management,Environment - Street Scene,ESS,Water Plus Limited,A044043,15/11/2017,1354154,294.51,Sewerage & Environmental
North West Leicestershire District Council,31UH,Street Management,Environment - Street Scene,ESS,Water Plus Limited,A044043,15/11/2017,1354155,962.88,Sewerage & Environmental
North West Leicestershire District Council,31UH,Street Management,Environment - Street Scene,ESS,Water Plus Limited,A044043,15/11/2017,1354156,413.08,Sewerage & Environmental
North West Leicestershire District Council,31UH,Street Management,Environment - Street Scene,ESS,Water Plus Limited,A044043,15/11/2017,1354157,5504.87,Sewerage & Environmental
North West Leicestershire District Council,31UH,Street Management,Environment - Street Scene,ESS,Water Plus Limited,A044043,15/11/2017,1354158,570.59,Sewerage & Environmental
North West Leicestershire District Council,31UH,Housing Repairs,HRA Housing Repairs & Maintenance,HRAHRM,Leicestershire County Council,A000950,15/11/2017,1354163,4504.24,Service Contracts
North West Leicestershire District Council,31UH,Communications,Corporate - Customer Services,CS,Qmatic (United Kingdom) Ltd,A040610,22/11/2017,1354166,2750,Software Licences
North West Leicestershire District Council,31UH,Street Management,Environment Waste Management,ENOWM,Ricardo Energy & Environment,A042855,15/11/2017,1354168,8700,Consultants Fees
North West Leicestershire District Council,31UH,Housing,HRA Performance & Business Support,HRAPBS,Alysium Consulting,A043813,29/11/2017,1354182,2456.25,Computing
North West Leicestershire District Council,31UH,Housing,HRA Performance & Business Support,HRAPBS,Alysium Consulting,A043813,29/11/2017,1354183,3225,Computing
North West Leicestershire District Council,31UH,Leisure Centres,Hermitage Leisure Centre,HLC,Access Service & Repair Ltd,A040663,15/11/2017,1354186,400,Service Contracts
North West Leicestershire District Council,31UH,Planning & Development,Environment Community Planning,ECP,Dods Parliamentary Communications Ltd,A036291,15/11/2017,1354188,445,Training Courses (Organised)
North West Leicestershire District Council,31UH,Street Management,Environment General Technician,ENOGT,Jordan Road Surfacing Ltd,A043240,15/11/2017,1354189,1500,Routine Ground Maintenance
North West Leicestershire District Council,31UH,Information Technology,ICT Services,ICT,Freedom Communications (UK) Ltd,A032826,15/11/2017,1354190,1543.32,Admin Equipment - Maintenance
North West Leicestershire District Council,31UH,Leisure Centres,Hood Park Leisure Centre,HPLC,Zoggs International Ltd,A001833,15/11/2017,1354193,756,Leisure Equipment
North West Leicestershire District Council,31UH,Leisure Centres,Hood Park Leisure Centre,HPLC,Molson Coors Brewing Company (UK) Ltd,A044397,15/11/2017,1354196,543.13,Bar Provisions
North West Leicestershire District Council,31UH,Legal & Democratic,Civic Expenses,LDCE,ESPO,A000958,15/11/2017,1354202,265.99,Operational Equipment
North West Leicestershire District Council,31UH,Chief Exec,Chief Executive,CHEX,"Alkiki Community Interest Company 	",A043035,15/11/2017,1354208,16726.4,Legal & Professional Services
North West Leicestershire District Council,31UH,Communications,Corporate - Customer Services,CS,ESPO,A000958,29/11/2017,1354211,378,Stationery
North West Leicestershire District Council,31UH,Leisure & Culture,Cultural Services Arts & Events,CULTEV,Leicester Shire Promotions Ltd,A028765,15/11/2017,1354213,300,Advertising
North West Leicestershire District Council,31UH,Legal & Democratic,Legal Services,LDLS,Timothy Leader,A044312,15/11/2017,1354214,330,External Legal Fees & Advice
North West Leicestershire District Council,31UH,Housing,HRA Housing Management,HRAHM,Redacted- Personal data,A044430,15/11/2017,1354218,250,Under Occupancy Incentives
North West Leicestershire District Council,31UH,Housing,HRA Housing Management,HRAHM,Redacted- Personal data,A044431,15/11/2017,1354219,250,Under Occupancy Incentives
North West Leicestershire District Council,31UH,Housing,HRA Housing Management,HRAHM,GatenbySanderson Limited,A034524,15/11/2017,1354222,4046,Agency Staff
North West Leicestershire District Council,31UH,Information Technology,ICT Services,ICT,Canon UK Ltd,A040459,15/11/2017,1354223,5532.91,Equipment Operating Leases
North West Leicestershire District Council,31UH,Information Technology,ICT Services,ICT,Six Degrees Technology Group Ltd,A044205,15/11/2017,1354224,637.26,Computing
North West Leicestershire District Council,31UH,Housing,HRA Housing Management,HRAHM,Leicestershire County Council,A000950,15/11/2017,1354225,7009.44,Service Contracts
North West Leicestershire District Council,31UH,Planning & Development,Environment Planning Policy,EPP,The Planning Inspectorate,A030996,29/11/2017,1354226,62762.59,Legal & Professional Services
North West Leicestershire District Council,31UH,Leisure Centres,Hood Park Bar and Catering,HPBC,Snackline Direct Ltd,A042489,15/11/2017,1354228,917.76,Vending Machine Provisions
North West Leicestershire District Council,31UH,Housing Repairs,HRA Housing Repairs & Maintenance,HRAHRM,Timber-Link Fencing Ltd,A033297,15/11/2017,1354232,360,External Contractor Payments
North West Leicestershire District Council,31UH,Housing Repairs,HRA Housing Repairs & Maintenance,HRAHRM,Timber-Link Fencing Ltd,A033297,15/11/2017,1354233,1700,External Contractor Payments
North West Leicestershire District Council,31UH,Housing Repairs,HRA Housing Repairs & Maintenance,HRAHRM,Timber-Link Fencing Ltd,A033297,15/11/2017,1354234,1700,External Contractor Payments
North West Leicestershire District Council,31UH,Housing Repairs,HRA Housing Repairs & Maintenance,HRAHRM,Timber-Link Fencing Ltd,A033297,15/11/2017,1354235,700,External Contractor Payments
North West Leicestershire District Council,31UH,Street Management,Environment Transport,ENOT,Dennis Eagle Limited,A000522,15/11/2017,1354239,262.78,Non Scheduled Maintenance - Parts
North West Leicestershire District Council,31UH,Street Management,Environment Transport,ENOT,Ford & Slater Group Ltd,A000625,15/11/2017,1354246,698.26,Non Scheduled Maintenance - Parts
North West Leicestershire District Council,31UH,Planning & Development,Environment Community Planning,ECP,The Professional Promotion Company Ltd,A043727,22/11/2017,1354247,649,Promotional Equipment
North West Leicestershire District Council,31UH,Corporate Director,Human Resources,HR,Specsavers Corporate Eyecare,A028625,15/11/2017,1354249,525,Eye Care Vouchers
North West Leicestershire District Council,31UH,Property Services,Property Commercial Lettings,PROPCL,British Telecommunications Plc,A000233,15/11/2017,1354252,560.68,Telephones
North West Leicestershire District Council,31UH,Chief Exec,Chief Executive,CHEX,Ecus Ltd,A044014,15/11/2017,1354257,1299.6,Legal Fees
North West Leicestershire District Council,31UH,Property Services,Property Facilities Management,PROPFM,Syston Rolling Shutters Ltd t/a Syston Doors,A001624,15/11/2017,1354259,1097,General Repairs
North West Leicestershire District Council,31UH,Finance,Exchequer Services,EXCH,Click Travel Ltd,A044308,15/11/2017,1354260,585.2,Travel and Accomodation
North West Leicestershire District Council,31UH,Housing,HRA Performance & Business Support,HRAPBS,Michael Page International Recruitment Ltd,A041893,22/11/2017,1354262,2017.75,Agency Staff
North West Leicestershire District Council,31UH,Corporate Director,Human Resources,HR,Lex Autolease,A033523,15/11/2017,1354323,3211.93,Vehicle Leasing
North West Leicestershire District Council,31UH,Street Management,Environment Transport,ENOT,Terberg Matec UK Limited,A001647,15/11/2017,1354329,-1340.41,Vehicle Parts & Repairs
North West Leicestershire District Council,31UH,Leisure Centres,Hood Park Leisure Centre,HPLC,Leisureteq,A000968,15/11/2017,1354330,839.59,Maintenance/Office Expenditure
North West Leicestershire District Council,31UH,Environmental Health,Environmental Services,EES,MBS Food & Drink,A044436,15/11/2017,1354335,424,Event Expenditure
North West Leicestershire District Council,31UH,Housing Repairs,HRA Housing Repairs & Maintenance,HRAHRM,Severn Trent Water Limited,A001468,15/11/2017,1354338,398,Waste Connection Services
North West Leicestershire District Council,31UH,Housing Repairs,HRA Housing Repairs & Maintenance,HRAHRM,TECSERV UK LIMITED,A028261,15/11/2017,1354340,600,Door Entry Systems
North West Leicestershire District Council,31UH,Housing Repairs,HRA Housing Repairs & Maintenance,HRAHRM,TECSERV UK LIMITED,A028261,15/11/2017,1354341,953,Door Entry Systems
North West Leicestershire District Council,31UH,Housing Repairs,HRA Housing Repairs & Maintenance,HRAHRM,TECSERV UK LIMITED,A028261,15/11/2017,1354342,714.5,Door Entry Systems
North West Leicestershire District Council,31UH,Housing Repairs,HRA Housing Repairs & Maintenance,HRAHRM,TECSERV UK LIMITED,A028261,15/11/2017,1354344,496.64,Door Entry Systems
North West Leicestershire District Council,31UH,Housing Repairs,HRA Housing Repairs & Maintenance,HRAHRM,TECSERV UK LIMITED,A028261,15/11/2017,1354345,608.5,Door Entry Systems
North West Leicestershire District Council,31UH,Housing Repairs,HRA Housing Repairs & Maintenance,HRAHRM,TECSERV UK LIMITED,A028261,15/11/2017,1354346,683,Door Entry Systems
North West Leicestershire District Council,31UH,Housing Repairs,HRA Housing Repairs & Maintenance,HRAHRM,Laker BMS Ltd,A031787,15/11/2017,1354352,1210.34,Housing Repairs
North West Leicestershire District Council,31UH,Housing Repairs,HRA Housing Repairs & Maintenance,HRAHRM,Laker BMS Ltd,A031787,15/11/2017,1354354,1250.16,Housing Repairs
North West Leicestershire District Council,31UH,Housing Repairs,HRA Housing Repairs & Maintenance,HRAHRM,Laker BMS Ltd,A031787,15/11/2017,1354355,289,Housing Repairs
North West Leicestershire District Council,31UH,Environmental Health,Environmental Services,EES,College Garth Boarding Kennels,A000385,15/11/2017,1354356,2213.5,Kennelling Fees
North West Leicestershire District Council,31UH,Information Technology,ICT Services,ICT,Oracle Corporation UK Ltd.,A036174,15/11/2017,1354358,410.04,Contract Payments (Other) Ext
North West Leicestershire District Council,31UH,Finance,Financial Planning,FINPLA,Barclays Mercantile Business,A003940,16/11/2017,1354373,1500000,Policy Lending
North West Leicestershire District Council,31UH,Legal & Democratic,Legal Services,LDLS,HMCTS,A033956,16/11/2017,1354374,1428,Legal & Professional Services
North West Leicestershire District Council,31UH,Finance,Exchequer Services,EXCH,Comensura Limited,A036958,22/11/2017,1354375,28652.76,Agency Staff
North West Leicestershire District Council,31UH,Legal & Democratic,Electoral & Land Charges,LDELC,Crestline Printers Limited,A000434,22/11/2017,1354385,756,Stationery
North West Leicestershire District Council,31UH,Finance,Financial Planning,FINPLA,CIPFA,A027467,22/11/2017,1354386,3334.5,Subscriptions
North West Leicestershire District Council,31UH,Planning & Development,Environment - Development Control,EDC,John Merison BMC Ltd,A001092,29/11/2017,1354388,4857.74,Building Repairs and Maintenance
North West Leicestershire District Council,31UH,Leisure Centres,Hermitage Leisure Centre,HLC,Craftsman Quality Lockers Ltd,A039532,22/11/2017,1354391,335,Secure Storage Tokens
North West Leicestershire District Council,31UH,Information Technology,ICT Services,ICT,Socitm Ltd,A012633,22/11/2017,1354392,995,Training Courses (Organised)
North West Leicestershire District Council,31UH,Communications,Corporate - Customer Services,CS,Neopost Limited,A000079,22/11/2017,1354394,2000,Postages
North West Leicestershire District Council,31UH,Housing Repairs,HRA Housing Repairs & Maintenance,HRAHRM,Laker BMS Ltd,A031787,22/11/2017,1354395,55607.3,Housing Repairs
North West Leicestershire District Council,31UH,Street Management,Environment Transport,ENOT,Kilworth Machinery Ltd,A041200,22/11/2017,1354396,277.04,Non Scheduled Maintenance - Parts
North West Leicestershire District Council,31UH,Street Management,Environment Parks,ENOP,Manor farm Nurseries,A034561,22/11/2017,1354397,1111.95,External Materials
North West Leicestershire District Council,31UH,Street Management,Environment - Street Scene,ESS,CIEH,A027750,22/11/2017,1354403,720,Professional Fees
North West Leicestershire District Council,31UH,Street Management,Environment - Street Scene,ESS,Metric Group Ltd (Sales),A028996,,1354411,-1425,Contract Payments (Other) Ext
North West Leicestershire District Council,31UH,Street Management,Environment - Street Scene,ESS,Metric Group Ltd (Sales),A028996,,1354412,-1140,Contract Payments (Other) Ext
North West Leicestershire District Council,31UH,Street Management,Environment Transport,ENOT,Westbury Industrial Supplies Limited,A009933,22/11/2017,1354416,448.86,Protective Clothing
North West Leicestershire District Council,31UH,Planning & Development,Environment Community Planning,ECP,Cheviot Trees Limited,A037926,22/11/2017,1354417,6332.8,Horticultural Supplies
North West Leicestershire District Council,31UH,Leisure & Culture,Cultural Services Arts & Events,CULTEV,Henderson Managment,A044292,22/11/2017,1354419,935,Event Expenditure
North West Leicestershire District Council,31UH,Planning & Development,Environment Community Planning,ECP,Broadland Guarding Services Ltd,A042635,22/11/2017,1354421,3896.91,Agency Staff
North West Leicestershire District Council,31UH,Finance,Financial Planning,FINPLA,Zurich Municipal,A001835,22/11/2017,1354422,360,Miscellaneous Insurances
North West Leicestershire District Council,31UH,Property Services,Property Facilities Management,PROPFM,John Merison BMC Ltd,A001092,22/11/2017,1354428,796.96,Building Repairs and Maintenance
North West Leicestershire District Council,31UH,Property Services,Property Commercial Lettings,PROPCL,John Merison BMC Ltd,A001092,22/11/2017,1354434,2398,Building Repairs and Maintenance
North West Leicestershire District Council,31UH,Planning & Development,Environment - Development Control,EDC,Euro RSCG People T/A Havas People Ltd,A001395,22/11/2017,1354437,931.38,Advertising
North West Leicestershire District Council,31UH,Housing Repairs,HRA Housing Repairs & Maintenance,HRAHRM,Emperor Scaffolding Limited,A038405,22/11/2017,1354440,400,Hire Of Operational Equipment
North West Leicestershire District Council,31UH,Housing Repairs,HRA Housing Repairs & Maintenance,HRAHRM,Emperor Scaffolding Limited,A038405,22/11/2017,1354441,550,Hire Of Operational Equipment
North West Leicestershire District Council,31UH,Housing Repairs,HRA Housing Repairs & Maintenance,HRAHRM,Emperor Scaffolding Limited,A038405,22/11/2017,1354442,550,Hire Of Operational Equipment
North West Leicestershire District Council,31UH,Housing Repairs,HRA Housing Repairs & Maintenance,HRAHRM,Emperor Scaffolding Limited,A038405,22/11/2017,1354443,400,Hire Of Operational Equipment
North West Leicestershire District Council,31UH,Leisure Centres,Hermitage Leisure Centre,HLC,John Merison BMC Ltd,A001092,22/11/2017,1354444,890.53,Building Repairs and Maintenance
North West Leicestershire District Council,31UH,Leisure Centres,Hermitage Leisure Centre,HLC,Measham Leisure Centre,A027454,22/11/2017,1354446,2441.49,Measham LC Lifestyle DD
North West Leicestershire District Council,31UH,Leisure Centres,Hood Park Leisure Centre,HPLC,Eaton Electrical Ltd,A044048,22/11/2017,1354449,1652,Maintenance- Electrical
North West Leicestershire District Council,31UH,Housing,HRA Housing Management,HRAHM,Mr J W Thompson,A044390,22/11/2017,1354450,2350,Legal & Professional Services
North West Leicestershire District Council,31UH,Legal & Democratic,Legal Services,LDLS,CIPFA,A027467,22/11/2017,1354451,590,Training Courses (Organised)
North West Leicestershire District Council,31UH,Leisure & Culture,Cultural Services Arts & Events,CULTEV,Ashby Dramatic Society Trust,A027431,22/11/2017,1354453,362.7,Ticket Sales
North West Leicestershire District Council,31UH,Leisure & Culture,Cultural Services Arts & Events,CULTEV,Ashby Dramatic Society Trust,A027431,22/11/2017,1354454,279,Ticket Sales
North West Leicestershire District Council,31UH,Leisure & Culture,Cultural Services Arts & Events,CULTEV,Redacted- Personal data,A036873,22/11/2017,1354455,756,Ticket Sales
North West Leicestershire District Council,31UH,Housing Repairs,HRA Housing Repairs & Maintenance,HRAHRM,Travis Perkins Trading Co Ltd,A001693,22/11/2017,1354470,1130,Operational Equipment - Repair and Maintenance
North West Leicestershire District Council,31UH,Leisure & Culture,Cultural Services Arts & Events,CULTEV,Chameleon Pro Audio T/A Lux Technical Ltd,A027592,22/11/2017,1354471,492,Event Expenditure
North West Leicestershire District Council,31UH,Street Management,Environment Transport,ENOT,Maha UK Limited,A031879,22/11/2017,1354472,1092,Operational Equipment - Repair and Maintenance
North West Leicestershire District Council,31UH,Property Services,Property Facilities Management,PROPFM,Syston Rolling Shutters Ltd t/a Syston Doors,A001624,22/11/2017,1354473,960,General Repairs
North West Leicestershire District Council,31UH,Leisure Centres,Castle Donington Community College,CDCC,Elliott Group Limited,A005413,22/11/2017,1354481,522.58,Secure Storage
North West Leicestershire District Council,31UH,Leisure Centres,Hermitage Leisure Centre,HLC,ADT Fire And Security,A000021,22/11/2017,1354483,505,Fire Alarm Maintenance
North West Leicestershire District Council,31UH,Leisure Centres,Hood Park Leisure Centre,HPLC,Futuresun,A000645,22/11/2017,1354486,405,General Repairs
North West Leicestershire District Council,31UH,Leisure Centres,Hood Park Leisure Centre,HPLC,Siemens Energy Services Ltd,A024546,22/11/2017,1354488,262.89,Service Contracts
North West Leicestershire District Council,31UH,Street Management,Environment Waste Management,ENOWM,LBK Packaging,A028619,22/11/2017,1354491,8625,General Materials
North West Leicestershire District Council,31UH,Property Services,Property Commercial Lettings,PROPCL,Moira Furnace Museum Trust Ltd,A001136,22/11/2017,1354492,542.7,Toilet Cleaning Supplies
North West Leicestershire District Council,31UH,Property Services,Property Commercial Lettings,PROPCL,Moira Furnace Museum Trust Ltd,A001136,22/11/2017,1354493,304.24,Toilet Cleaning Supplies
North West Leicestershire District Council,31UH,Finance,Exchequer Services,EXCH,Kings Armoured Security Services Ltd,A004468,22/11/2017,1354494,1306.93,Cash Collection Service
North West Leicestershire District Council,31UH,Corporate Director,Human Resources,HR,Wider Plan Ltd,A043948,22/11/2017,1354495,1895,Staff Benefit Scheme
North West Leicestershire District Council,31UH,Finance,Financial Planning,FINPLA,CIPFA,A027467,22/11/2017,1354496,1242,Computing
North West Leicestershire District Council,31UH,Housing,HRA Housing Management,HRAHM,Water Plus Limited,A044043,22/11/2017,1354506,524.19,Sewerage & Environmental
North West Leicestershire District Council,31UH,Leisure Centres,Hermitage Leisure Centre,HLC,Water Plus Limited,A044043,22/11/2017,1354510,1824.69,Sewerage & Environmental
North West Leicestershire District Council,31UH,Communications,Corporate - Customer Services,CS,Freedom Communications (UK) Ltd,A032826,22/11/2017,1354515,2096.64,Software Licences
North West Leicestershire District Council,31UH,Street Management,Environment Parks,ENOP,Taylors Buildbase,A035303,22/11/2017,1354517,323.2,External Materials
North West Leicestershire District Council,31UH,Housing Repairs,HRA Housing Repairs & Maintenance,HRAHRM,Ward Recycling,A035471,22/11/2017,1354519,669.74,Tipping Charges
North West Leicestershire District Council,31UH,Information Technology,ICT Services,ICT,Freedom Communications (UK) Ltd,A032826,22/11/2017,1354520,800,Software Licences
North West Leicestershire District Council,31UH,Information Technology,ICT Services,ICT,Adept Telecom Plc,A044193,22/11/2017,1354521,32963.37,Contract Payments (Other) Ext
North West Leicestershire District Council,31UH,Leisure Centres,Hermitage Bar & Catering,HLBC,Snackline Direct Ltd,A042489,22/11/2017,1354523,562.85,Bar Provisions
North West Leicestershire District Council,31UH,Street Management,Environment Transport,ENOT,Ford & Slater Group Ltd,A000625,22/11/2017,1354530,320,Vehicle Parts & Repairs
North West Leicestershire District Council,31UH,Street Management,Environment Transport,ENOT,Anderson Commercials Limited,A033469,22/11/2017,1354538,437,Goods Vehicle Plating
North West Leicestershire District Council,31UH,Street Management,Environment - Street Scene,ESS,Elite Industrial Doors Ltd,A042135,22/11/2017,1354544,2500,Contract Payments (Other) Ext
North West Leicestershire District Council,31UH,Leisure & Culture,Sport & Physical Activity,SPA,Sharon Miller Coaching,A042986,22/11/2017,1354545,480,Well Being Classes
North West Leicestershire District Council,31UH,Environmental Health,Environmental Health & Licensing,EEHL,Staffordshire County Council,A039303,22/11/2017,1354546,356.5,Private & Pool Water Sampling
North West Leicestershire District Council,31UH,Environmental Health,Environmental Health & Licensing,EEHL,Mega Arumugam,A043638,29/11/2017,1354547,350,Training Courses (Organised)
North West Leicestershire District Council,31UH,Communications,Corporate - Customer Services,CS,Neopost Limited,A000079,22/11/2017,1354548,4000,Postages
North West Leicestershire District Council,31UH,Leisure & Culture,Cultural Services TIC,CULTIC,Ashby Dramatic Society,A021686,22/11/2017,1354549,468,Ticket Sales
North West Leicestershire District Council,31UH,Leisure & Culture,Cultural Services Arts & Events,CULTEV,Cadeby Tree Trust,A027405,22/11/2017,1354558,2000,Coalville Christmas Decorations
North West Leicestershire District Council,31UH,Street Management,Environment Transport,ENOT,Post Office Limited,A008559,22/11/2017,1354567,650,Licences - Road Fund Licence
North West Leicestershire District Council,31UH,Planning & Development,Environment Community Planning,ECP,Baydale Control Systems Ltd,A042565,22/11/2017,1354579,2672.86,CCTV Maintenance
North West Leicestershire District Council,31UH,Housing Repairs,HRA Housing Repairs & Maintenance,HRAHRM,Ward Recycling,A035471,22/11/2017,1354585,499.88,Tipping Charges
North West Leicestershire District Council,31UH,Housing Strategy,Community - Housing Strategy,HS,Quality Lettings,A035264,22/11/2017,1354683,255.66,Homelessness Accomodation
North West Leicestershire District Council,31UH,Environmental Health,Environmental Services,EES,Allstar Business Solutions Ltd,A039425,22/11/2017,1354687,271.56,Fuel
North West Leicestershire District Council,31UH,Housing,HRA Housing Management,HRAHM,Sure Maintenance Ltd,A040460,29/11/2017,1354689,666.6,Plumbing & Heating
North West Leicestershire District Council,31UH,Housing Repairs,HRA Housing Repairs & Maintenance,HRAHRM,Sure Maintenance Ltd,A040460,29/11/2017,1354690,2272.5,Plumbing & Heating
North West Leicestershire District Council,31UH,Street Management,Environment - Street Scene,ESS,Apse,A018837,29/11/2017,1354694,478,Training Courses (Organised)
North West Leicestershire District Council,31UH,Street Management,Environment Transport,ENOT,Lee Wells Autobodies Ltd,A031849,29/11/2017,1354702,400,Non Insurance Damage
North West Leicestershire District Council,31UH,Street Management,Environment Transport,ENOT,Trade Price Windscreens Ltd,A040486,29/11/2017,1354705,295,Vehicle Parts & Repairs
North West Leicestershire District Council,31UH,Street Management,Environment Transport,ENOT,S & B Tyres Limited,A034071,29/11/2017,1354706,340,Transport Costs - Tyres
North West Leicestershire District Council,31UH,Street Management,Environment Transport,ENOT,Shepshed Auto Spares Ltd,A043917,29/11/2017,1354708,375,Vehicle Parts & Repairs
North West Leicestershire District Council,31UH,Street Management,Environment Transport,ENOT,Shepshed Auto Spares Ltd,A043917,29/11/2017,1354709,297.46,Vehicle Parts & Repairs
North West Leicestershire District Council,31UH,Communications,Corporate - Communications,CP,One Stop Promotions (Leics) Ltd,A001240,29/11/2017,1354718,294,Stationery
North West Leicestershire District Council,31UH,Corporate Director,Human Resources,HR,Health Management Ltd,A038840,29/11/2017,1354722,410,Medical Fees
North West Leicestershire District Council,31UH,Finance,Exchequer Services,EXCH,Castletown House B & B,A042250,23/11/2017,1354727,1440,Homelessness Accomodation
North West Leicestershire District Council,31UH,Finance,Exchequer Services,EXCH,ESPO,A000958,23/11/2017,1354728,11889.12,Gas
North West Leicestershire District Council,31UH,Corporate Director,Human Resources,HR,The Disclosure & Barring Service,A027625,23/11/2017,1354729,686,CRB Checks
North West Leicestershire District Council,31UH,Finance,Financial Planning,FINPLA,Guildford Borough Council,A044456,23/11/2017,1354731,3000000,Policy Lending
North West Leicestershire District Council,31UH,Housing,HRA Housing Management,HRAHM,HMCTS,A033955,23/11/2017,1354732,3492,Legal & Professional Services
North West Leicestershire District Council,31UH,Finance,Exchequer Services,EXCH,British Telecommunications Plc,A000233,23/11/2017,1354733,5218.73,Alarm System Telephones
North West Leicestershire District Council,31UH,Finance,Exchequer Services,EXCH,Comensura Limited,A036958,29/11/2017,1354735,34847.77,Agency Staff
North West Leicestershire District Council,31UH,Finance,Financial Planning,FINPLA,ESPO,A000958,29/11/2017,1354738,343,Furniture
North West Leicestershire District Council,31UH,Leisure Centres,Hermitage Bar & Catering,HLBC,Snackline Direct Ltd,A042489,29/11/2017,1354746,405.53,Catering Provisions
North West Leicestershire District Council,31UH,Housing,HRA Performance & Business Support,HRAPBS,Michael Page International Recruitment Ltd,A041893,29/11/2017,1354754,2017.75,Agency Staff
North West Leicestershire District Council,31UH,Information Technology,ICT Services,ICT,Dell Computer Corporation Ltd,A000470,29/11/2017,1354755,275.52,Computer Development
North West Leicestershire District Council,31UH,Street Management,Environment Transport,ENOT,Terberg Matec UK Limited,A001647,29/11/2017,1354757,2512.78,Vehicle Parts & Repairs
North West Leicestershire District Council,31UH,Street Management,Environment Transport,ENOT,Terberg Matec UK Limited,A001647,29/11/2017,1354758,1714.23,Vehicle Parts & Repairs
North West Leicestershire District Council,31UH,Leisure & Culture,Cultural Services Arts & Events,CULTEV,Coalville Times Ltd,A000374,29/11/2017,1354762,260,Advertising
North West Leicestershire District Council,31UH,Housing,HRA Performance & Business Support,HRAPBS,Michael Page International Recruitment Ltd,A041893,29/11/2017,1354764,4743.2,Agency Staff
North West Leicestershire District Council,31UH,Property Services,Property Commercial Lettings,PROPCL,Coalville Cleaning Services,A003037,29/11/2017,1354766,558.06,Contract Cleaning
North West Leicestershire District Council,31UH,Property Services,Property Commercial Lettings,PROPCL,Coalville Cleaning Services,A003037,29/11/2017,1354767,289.95,Contract Cleaning
North West Leicestershire District Council,31UH,Planning & Development,Environment - Development Control,EDC,Euro RSCG People T/A Havas People Ltd,A001395,29/11/2017,1354773,669.18,Advertising
North West Leicestershire District Council,31UH,Planning & Development,Environment - Development Control,EDC,Euro RSCG People T/A Havas People Ltd,A001395,29/11/2017,1354774,1867.23,Advertising
North West Leicestershire District Council,31UH,Planning & Development,Environment - Development Control,EDC,Sanham Agricultural Planning Ltd,A035463,29/11/2017,1354775,780,External Legal Fees & Advice
North West Leicestershire District Council,31UH,Property Services,Property Commercial Lettings,PROPCL,John Merison BMC Ltd,A001092,29/11/2017,1354776,2737.17,Building Repairs and Maintenance
North West Leicestershire District Council,31UH,Information Technology,ICT Services,ICT,Cuttlefish Multimedia Ltd,A032102,29/11/2017,1354777,1718.33,Website Maintenance
North West Leicestershire District Council,31UH,Street Management,Environment Transport,ENOT,Selby's Garage (Woodhouse) Ltd,A044011,29/11/2017,1354781,662.32,Hire Of Operational Equipment
North West Leicestershire District Council,31UH,Street Management,Environment Transport,ENOT,Calor Gas Limited,A032686,29/11/2017,1354782,1018.93,Gas
North West Leicestershire District Council,31UH,Housing Repairs,HRA Housing Repairs & Maintenance,HRAHRM,Robert Woodhead Ltd,A043924,29/11/2017,1354785,202879.81,Legal & Professional Services
North West Leicestershire District Council,31UH,Housing Repairs,HRA Housing Repairs & Maintenance,HRAHRM,Sure Maintenance Ltd,A040460,29/11/2017,1354788,2055.35,Plumbing & Heating
North West Leicestershire District Council,31UH,Housing,HRA Housing Management,HRAHM,Western Power Distribution,A038499,29/11/2017,1354793,1860,Legal & Professional Services
North West Leicestershire District Council,31UH,Housing,HRA Housing Management,HRAHM,Leicester and Rutland 4x4 Response,A044460,29/11/2017,1354797,469.95,Medical Equipment
North West Leicestershire District Council,31UH,Housing Repairs,HRA Housing Repairs & Maintenance,HRAHRM,Sure Maintenance Ltd,A040460,29/11/2017,1354798,7437.12,Plumbing & Heating
North West Leicestershire District Council,31UH,Information Technology,ICT Services,ICT,Centreprise International Ltd,A043431,,1354799,-2300,Contract Payments (Dws) Ext
North West Leicestershire District Council,31UH,Leisure & Culture,Leisure & Cult Mangt,LCM,Woodstock in Whitwick,A044459,29/11/2017,1354801,500,Grants
North West Leicestershire District Council,31UH,Communications,Corporate - Customer Services,CS,Neopost Limited,A000079,29/11/2017,1354809,363.48,Stationery
North West Leicestershire District Council,31UH,Legal & Democratic,Electoral & Land Charges,LDELC,Twofold Ltd,A041261,29/11/2017,1354814,296.46,Operational Equipment
North West Leicestershire District Council,31UH,Corporate Director,Human Resources,HR,GatenbySanderson Limited,A034524,29/11/2017,1354819,4046,Agency Staff
North West Leicestershire District Council,31UH,Leisure Centres,Hermitage Bar & Catering,HLBC,Molson Coors Brewing Company (UK) Ltd,A044397,29/11/2017,1354820,365.26,Bar Provisions
North West Leicestershire District Council,31UH,Housing Repairs,HRA Housing Repairs & Maintenance,HRAHRM,Laker BMS Ltd,A031787,29/11/2017,1354833,747,Housing Repairs
North West Leicestershire District Council,31UH,Housing Repairs,HRA Housing Repairs & Maintenance,HRAHRM,Orbis Property Protection Ltd,A028149,29/11/2017,1354838,322,Void Property Clearance Services
North West Leicestershire District Council,31UH,Housing Repairs,HRA Housing Repairs & Maintenance,HRAHRM,Orbis Property Protection Ltd,A028149,29/11/2017,1354839,507.5,Void Property Clearance Services
North West Leicestershire District Council,31UH,Housing Repairs,HRA Housing Repairs & Maintenance,HRAHRM,H20 Utilities Ltd,A043865,29/11/2017,1354841,3400,Associated Drainage Services
North West Leicestershire District Council,31UH,Housing Repairs,HRA Housing Repairs & Maintenance,HRAHRM,H20 Utilities Ltd,A043865,29/11/2017,1354842,750,Associated Drainage Services
North West Leicestershire District Council,31UH,Housing Repairs,HRA Housing Repairs & Maintenance,HRAHRM,Leicestershire County Council,A000950,29/11/2017,1354843,4050,Service Contracts
North West Leicestershire District Council,31UH,Housing Repairs,HRA Housing Repairs & Maintenance,HRAHRM,Kier Services Maintenance East Ltd,A039980,29/11/2017,1354844,1868.13,Decent Homes
North West Leicestershire District Council,31UH,Housing Repairs,HRA Housing Repairs & Maintenance,HRAHRM,Kier Services Maintenance East Ltd,A039980,29/11/2017,1354845,1771.41,Decent Homes
North West Leicestershire District Council,31UH,Housing Repairs,HRA Housing Repairs & Maintenance,HRAHRM,Kier Services Maintenance East Ltd,A039980,29/11/2017,1354846,1868.13,Decent Homes
North West Leicestershire District Council,31UH,Housing Repairs,HRA Housing Repairs & Maintenance,HRAHRM,Kier Services Maintenance East Ltd,A039980,29/11/2017,1354847,1868.13,Decent Homes
North West Leicestershire District Council,31UH,Housing Repairs,HRA Housing Repairs & Maintenance,HRAHRM,Kier Services Maintenance East Ltd,A039980,29/11/2017,1354848,1771.41,Decent Homes
North West Leicestershire District Council,31UH,Housing Repairs,HRA Housing Repairs & Maintenance,HRAHRM,Kier Services Maintenance East Ltd,A039980,29/11/2017,1354849,1771.41,Decent Homes
North West Leicestershire District Council,31UH,Housing Repairs,HRA Housing Repairs & Maintenance,HRAHRM,Kier Services Maintenance East Ltd,A039980,29/11/2017,1354850,1868.13,Decent Homes
North West Leicestershire District Council,31UH,Street Management,Environment Transport,ENOT,Bandvulc Tyres Ltd,A033268,29/11/2017,1354851,475.92,Transport Costs - Tyres
North West Leicestershire District Council,31UH,Leisure & Culture,Leisure & Cult Mangt,LCM,North Kesteven District Council,A036297,29/11/2017,1354854,1938,Subscriptions
North West Leicestershire District Council,31UH,Planning & Development,Building Control,EBC,Leicestershire County Council,A027423,29/11/2017,1354855,2471,Search Fees- LCC
North West Leicestershire District Council,31UH,Street Management,Environment Transport,ENOT,Certas Energy Uk Ltd,A043448,29/11/2017,1354868,17638.45,Fuel
North West Leicestershire District Council,31UH,Property Services,Property Commercial Lettings,PROPCL,Pitney Bowes Finance Plc,A032630,29/11/2017,1354869,297.24,Equipment Operating Leases
North West Leicestershire District Council,31UH,Street Management,Environment Waste Management,ENOWM,Glasdon UK Ltd,A000671,29/11/2017,1354872,2306,General Materials
North West Leicestershire District Council,31UH,Finance,Exchequer Services,EXCH,Click Travel Ltd,A044308,29/11/2017,1354875,298.2,Travel and Accomodation
North West Leicestershire District Council,31UH,Information Technology,ICT Services,ICT,GE Capital Equipment Finance Ltd,A017429,29/11/2017,1354877,339.08,Equipment Operating Leases
North West Leicestershire District Council,31UH,Leisure Centres,Hood Park Bar and Catering,HPBC,Snackline Direct Ltd,A042489,29/11/2017,1354886,488.78,Catering Provisions
North West Leicestershire District Council,31UH,Information Technology,ICT Services,ICT,British Telecommunications Plc,A000233,29/11/2017,1354896,546.97,General Repairs
North West Leicestershire District Council,31UH,Housing Repairs,HRA Housing Repairs & Maintenance,HRAHRM,Sure Maintenance Ltd,A040460,29/11/2017,1354907,18972.65,Plumbing & Heating
North West Leicestershire District Council,31UH,Street Management,Environment Waste Management,ENOWM,Berendsen Uk Ltd,A001600,29/11/2017,1354908,302.6,Protective Clothing
North West Leicestershire District Council,31UH,Housing Repairs,HRA Housing Repairs & Maintenance,HRAHRM,Sure Maintenance Ltd,A040460,29/11/2017,1355061,980,Plumbing & Heating
North West Leicestershire District Council,31UH,Housing Repairs,HRA Housing Repairs & Maintenance,HRAHRM,Sure Maintenance Ltd,A040460,29/11/2017,1355062,1928.5,Plumbing & Heating
North West Leicestershire District Council,31UH,Housing Repairs,HRA Housing Repairs & Maintenance,HRAHRM,Sure Maintenance Ltd,A040460,29/11/2017,1355063,939.35,Plumbing & Heating
North West Leicestershire District Council,31UH,Housing Repairs,HRA Housing Repairs & Maintenance,HRAHRM,Sure Maintenance Ltd,A040460,29/11/2017,1355065,5154,Plumbing & Heating
North West Leicestershire District Council,31UH,Housing Repairs,HRA Housing Repairs & Maintenance,HRAHRM,Laker BMS Ltd,A031787,29/11/2017,1355066,2124,Housing Repairs
North West Leicestershire District Council,31UH,Housing Repairs,HRA Housing Repairs & Maintenance,HRAHRM,Kier Services Maintenance East Ltd,A039980,29/11/2017,1355072,1868.13,Decent Homes
North West Leicestershire District Council,31UH,Housing Repairs,HRA Housing Repairs & Maintenance,HRAHRM,Orbis Property Protection Ltd,A028149,29/11/2017,1355074,385,Void Property Clearance Services
North West Leicestershire District Council,31UH,Housing Repairs,HRA Housing Repairs & Maintenance,HRAHRM,Orbis Property Protection Ltd,A028149,29/11/2017,1355079,282,Void Property Clearance Services
North West Leicestershire District Council,31UH,Housing Repairs,HRA Housing Repairs & Maintenance,HRAHRM,Laker BMS Ltd,A031787,29/11/2017,1355087,3531,Housing Repairs
North West Leicestershire District Council,31UH,Communications,Corporate - Customer Services,CS,Neopost Limited,A000079,29/11/2017,1355089,2552.28,Equipment Operating Leases
North West Leicestershire District Council,31UH,Corporate Director,Human Resources,HR,GatenbySanderson Limited,A034524,29/11/2017,1355090,16184,Agency Staff
North West Leicestershire District Council,31UH,Legal & Democratic,Civic Expenses,LDCE,The Association of Electoral Administrators Ltd,A033402,29/11/2017,1355091,740,Training Courses (Organised)
North West Leicestershire District Council,31UH,Leisure & Culture,Leisure & Cult Mangt,LCM,Julia Burkin,A043213,29/11/2017,1355092,2177.9,Consultants Fees
North West Leicestershire District Council,31UH,Chief Exec,Chief Executive,CHEX,David Nash ( trading as Koda Consulting),A043827,29/11/2017,1355093,3310,Consultants Fees
North West Leicestershire District Council,31UH,Leisure & Culture,Leisure & Cult Mangt,LCM,Redacted- Personal data,A041044,29/11/2017,1355094,250,LSA - SPORTS AWARDS
North West Leicestershire District Council,31UH,Leisure & Culture,Cultural Services Arts & Events,CULTEV,Redacted- Personal data,A043667,29/11/2017,1355095,300,Event Expenditure
North West Leicestershire District Council,31UH,Corporate Director,Human Resources,HR,Jobs Go Public Resourcing  Limited,A018047,29/11/2017,1355097,7292,Employee Advertising- Internet
North West Leicestershire District Council,31UH,Finance,Exchequer Services,EXCH,Insight Uk,A021505,29/11/2017,1355098,-442,Contract Payments (Other) Ext
North West Leicestershire District Council,31UH,Finance,Exchequer Services,EXCH,Insight Uk,A021505,29/11/2017,1355100,19890,Contract Payments (Other) Ext
North West Leicestershire District Council,31UH,Housing Repairs,HRA Housing Repairs & Maintenance,HRAHRM,Redacted- Personal data,A044468,29/11/2017,1355104,500,Compensation
